[Event "MCCT Chessable Masters 2022"]
[Site "Online"]
[Date "2022.05.16"]
[Round "12.1"]
[White "Carlsen, Magnus"]
[Black "Wei, Yi"]
[Result "1/2-1/2"]
[ECO "A00"]
[WhiteElo "2864"]
[BlackElo "2727"]
[Annotator "TA"]
[PlyCount "160"]
[EventDate "2022.05.19"]
[EventType "tourn"]
[EventCountry "NET"]
[SourceTitle "playchess.com"]
[Source "ChessBase"]
[SourceQuality "1"]
[TimeControl "900+10"]

{[%evp 9,160,-29,-27,-37,0,0,0,0,2,6,8,11,20,16,25,14,12,14,16,7,14,10,18,5,31,27,78,79,81,56,55,60,70,64,63,43,116,72,111,118,118,118,118,112,118,118,118,118,118,118,118,108,118,118,118,61,71,61,52,41,42,61,151,85,131,133,152,111,113,133,317,329,322,329,302,307,403,374,503,474,585,588,870,855,5106,5077,3808,1840,29954,29957,29968,29971,29970,29971,29975,29976,29977,29978,29978,29977,29976,29975,29975,29973,29973,29974,29974,0,0,0,29973,0,0,0,29975,29976,29975,29975,29971,29972,29972,29973,29973,29974,29974,29973,29973,29973,29972,0,0,0,0,0,0,0,0,0,0,0,0,0,0,0,0,0,0,0,0,0,0,0,0]} 1. h4 {[%emt 0:00:00]} d5 {[%emt 0:00:00]} 2. d4 {[%emt 0:00:08]} c5 {[%emt 0:00:20]} 3. e3 {[%emt 0:00:07]} Nc6 {[%emt 0:00:22] [#]} 4. c4 $146 {[%emt 0:00:04]} ({Predecessor:} 4. Bb5 Bf5 5. dxc5 e5 6. b4 a5 7. c3 Nf6 8. Nf3 Qc7 9. h5 h6 10. Nbd2 {0-1 (42) Galperin,P (2461)-Sadovsky,A (2421) Chess.com INT 2020}) 4... e6 {[%emt 0:02:28]} 5. Nf3 {[%emt 0:00:18]} Nf6 {[%emt 0:00:01]} 6. a3 {[%emt 0:00:33] A00: Irregular Openings.} a6 {[%emt 0:00:28]} 7. dxc5 {[%emt 0:00:08]} Bxc5 {[%emt 0:00:02]} 8. b4 {[%emt 0:00:02]} Be7 {[%emt 0:00:35]} 9. Bb2 {[%emt 0:00:02]} dxc4 {[%emt 0:00:07] Strongly threatening ...Qxd1+.} 10. Qxd8+ {[%emt 0:00:01]} Bxd8 {[%emt 0:00:06]} 11. Bxc4 {[%emt 0:00:02]} b5 {[%emt 0:00:12]} 12. Bd3 {[%emt 0:00:03]} O-O {[%emt 0:02:02]} 13. Nbd2 {[%emt 0:00:03]} Be7 {[%emt 0:00:56]} 14. Ke2 {[%emt 0:00:10]} Bb7 {[%emt 0:00:42]} 15. Rhc1 {[%emt 0:00:44]} Rfc8 {[%emt 0:02:09]} 16. Nb3 {[%emt 0:01:24]} Nd7 {[%emt 0:00:05]} 17. Rc2 {[%emt 0:00:47]} Bd8 {[%emt 0:01:37]} (17... Na7 $11) 18. Rd1 $16 {[%emt 0:01:00]} Rc7 {[%emt 0:00:06]} 19. Be4 {[%emt 0:00:37] Black must now prevent Rcd2.} (19. Rcd2 {seems wilder.} Ne7 20. Ng5 g6 21. Bxg6 Nxg6 22. Rxd7 Bd5 23. Rxc7 Bxc7 24. Nd2) 19... Nf6 {[%emt 0:02:01]} 20. Bxf6 {[%emt 0:02:03]} gxf6 {[%emt 0:00:08]} (20... Bxf6 $2 21. Rdc1 $18 (21. Na5 Nxa5 22. Rxc7 Bxe4 $16)) 21. g4 {[%emt 0:02:31] Prevents f5.} Rac8 {[%emt 0:00:24][%cal Oh7h5]} 22. h5 $36 {[%emt 0:02:18][%mdl 2048] White is pushing.} h6 {[%emt 0:00:58]} (22... Nd4+ $1 $14 23. Nfxd4 Bxe4 24. Rxc7 Bxc7) 23. Nfd2 {[%emt 0:02:18] 0x0.001df0133839dp-1022s more active pieces.} Ne5 {[%emt 0:01:15][%csl LRc2,LRg4] Hoping for ...Bxe4.} 24. Rxc7 $1 {[%emt 0:00:08]} Rxc7 {[%emt 0:00:00]} 25. Bxb7 {[%emt 0:00:17]} Rxb7 {[%emt 0:00:01]} 26. Nf3 $1 {[%emt 0:00:02]} Be7 {[%emt 0:01:11]} 27. Nxe5 {[%emt 0:00:04]} fxe5 {[%emt 0:00:01][%mdl 4096] Endgame KRB-KRN} 28. Rc1 $1 {[%emt 0:00:00] Against Rc7} (28. Nc5 $6 Bxc5 29. bxc5 Rc7 $11) 28... Kg7 {[%emt 0:00:26]} 29. Rc6 {[%emt 0:00:07]} Ra7 {[%emt 0:00:01]} 30. Kf3 {[%emt 0:00:18]} Bd8 {[%emt 0:00:44]} 31. Ke4 {[%emt 0:00:34]} a5 {[%emt 0:00:15]} 32. Nc5 {[%emt 0:00:29]} (32. Kxe5 $6 axb4 33. axb4 Bh4 $11) (32. Nxa5 $6 Bxa5 33. bxa5 Rxa5 $11) (32. Rc8 $1 $16 {[%cal Rc8d8]} Bc7 33. Nc5 (33. bxa5 Bxa5 34. Nxa5 Rxa5 $11)) 32... axb4 $14 {[%emt 0:00:05]} 33. axb4 {[%emt 0:00:00]} Ra2 {[%emt 0:00:18]} 34. Nd3 {[%emt 0:01:16] And now Rc5 would win.} ({Don't play} 34. Kxe5 Rxf2 35. Ke4 Rb2 $11) 34... Rd2 $1 {[%emt 0:00:06][%cal Of7f5]} 35. Rc3 {[%emt 0:00:15]} Bf6 {[%emt 0:00:32]} (35... Be7 $14) 36. f3 {[%emt 0:00:16]} (36. Rc5 $142) 36... Be7 {[%emt 0:00:10]} (36... Re2 $142) 37. Rc7 $1 $16 {[%emt 0:00:12]} Bd6 {[%emt 0:00:02]} 38. Rb7 {[%emt 0:00:05]} Kf6 {[%emt 0:00:20]} 39. Rxb5 {[%emt 0:00:09][%cal Rd3e5]} Kg5 $2 {[%emt 0:00:06]} (39... Rc2 $16 {was necessary.} 40. Nc5 (40. Nxe5 Bxe5 41. Rxe5 Rc4+ 42. Kd3 Rxb4 $16) 40... Kg7) 40. f4+ $18 {[%emt 0:00:45]} Kxg4 {[%emt 0:00:02][%csl Ge6,Gg4][%cal Rf7f5]} 41. fxe5 {[%emt 0:00:12]} ({Weaker is} 41. Nxe5+ Bxe5 42. Kxe5 Rd3 $14) 41... Be7 {[%emt 0:00:10]} 42. Rb7 {[%emt 0:00:06]} Rc2 {[%emt 0:00:17][%cal Rc2c4]} 43. Kd4 {[%emt 0:00:06] Against Rc4+} Bg5 {[%emt 0:00:09]} 44. Rxf7 {[%emt 0:00:01]} Re2 {[%emt 0:00:18]} 45. Nf4 {[%emt 0:00:24]} Rb2 {[%emt 0:00:02]} 46. Nxe6 {[%emt 0:00:28]} Rxb4+ {[%emt 0:00:05]} 47. Kc5 {[%emt 0:00:01]} Re4 {[%emt 0:00:08]} 48. Kd5 {[%emt 0:00:01]} Rxe3 {[%emt 0:00:05]} 49. Nxg5 {[%emt 0:00:01]} Kxg5 {[%emt 0:00:01] KR-KR} 50. e6 {[%emt 0:00:01]} Kxh5 {[%emt 0:00:20]} 51. Rg7 {[%emt 0:00:28]} Kh4 {[%emt 0:00:14]} 52. e7 {[%emt 0:00:02]} h5 {[%emt 0:00:05]} 53. Kd6 {[%emt 0:00:01]} Rd3+ {[%emt 0:00:30]} 54. Ke6 {[%emt 0:00:01]} Re3+ {[%emt 0:00:01]} 55. Kf7 {[%emt 0:00:01]} Rf3+ {[%emt 0:00:17]} 56. Kg8 {[%emt 0:00:01]} Re3 {[%emt 0:00:00]} 57. Kf8 $1 {[%emt 0:00:01]} Rf3+ {[%emt 0:00:13]} 58. Rf7 $2 {[%emt 0:01:47]} (58. Ke8 $1 Kh3 59. Kd7 Rd3+ 60. Ke6 Re3+ 61. Kf7 h4 62. Rg6 Rxe7+ 63. Kxe7) 58... Re3 $11 {[%emt 0:00:01]} 59. Rg7 $2 {[%emt 0:00:29][%mdl 8192]} (59. Rf6 $11 Kg5 60. Kf7 Rxe7+ 61. Kxe7) 59... Rf3+ $1 {[%emt 0:00:01]} 60. Kg8 $2 {[%emt 0:00:06]} (60. Ke8 $1 Kh3 61. Kd7 Re3 62. e8=Q Rxe8 63. Kxe8 h4 64. Ke7 Kh2 65. Ke6) 60... Re3 {[%emt 0:00:01]} 61. Kf7 $2 {[%emt 0:00:07][%mdl 8192]} (61. Kh7 $11) 61... Rf3+ $1 {[%emt 0:00:01]} 62. Kg6 {[%emt 0:00:06]} Re3 {[%emt 0:00:08]} 63. Kf5 {[%emt 0:00:04]} Re1 {[%emt 0:00:09]} 64. Kf6 {[%emt 0:00:37]} Rf1+ {[%emt 0:00:02]} 65. Ke6 {[%emt 0:00:01]} Re1+ {[%emt 0:00:01]} 66. Kf7 {[%emt 0:00:01]} Rf1+ {[%emt 0:00:00]} 67. Kg8 {[%emt 0:00:00]} Re1 {[%emt 0:00:03] [#]} 68. Kf8 $1 {[%emt 0:00:03]} Rf1+ {[%emt 0:00:02] [#]} 69. Rf7 $2 {[%emt 0:00:00]} (69. Ke8 $1 {mates} Kh3 70. Kd7 Rd1+ 71. Ke6 Re1+ 72. Kf7 h4 73. Rg6 Rf1+ 74. Rf6) 69... Re1 {[%emt 0:00:01] The position is equal.} 70. e8=R {[%emt 0:00:27]} Rxe8+ {[%emt 0:00:02]} 71. Kxe8 {[%emt 0:00:00] KR-KP} Kg3 {[%emt 0:00:01]} 72. Rg7+ {[%emt 0:00:01]} Kf3 {[%emt 0:00:06]} 73. Rh7 {[%emt 0:00:04]} Kg4 {[%emt 0:00:01]} 74. Ke7 {[%emt 0:00:05]} h4 {[%emt 0:00:01]} 75. Ke6 {[%emt 0:00:03]} h3 {[%emt 0:00:03]} 76. Ke5 {[%emt 0:00:01]} Kg3 {[%emt 0:00:01]} 77. Ke4 {[%emt 0:00:00]} h2 {[%emt 0:00:08]} 78. Ke3 {[%emt 0:00:01] White threatens Rg7+ and mate.} Kg2 {[%emt 0:00:01]} 79. Ke2 {[%emt 0:00:02]} h1=Q {[%emt 0:00:01]} 80. Rxh1 {[%emt 0:00:01]} Kxh1 {[%emt 0:00:01] Black escapes into a draw.  Weighted Error Value: White=0.29 (precise) /Black=0.29 (precise)} 1/2-1/2

[Event "MCCT Chessable Masters 2022"]
[Site "Online"]
[Date "2022.05.16"]
[Round "12.2"]
[White "Giri, Anish"]
[Black "Vidit, Santosh Gujrathi"]
[Result "1-0"]
[ECO "C54"]
[WhiteElo "2761"]
[BlackElo "2723"]
[Annotator "TA"]
[PlyCount "135"]
[EventDate "2022.05.19"]
[EventType "tourn"]
[EventCountry "NET"]
[SourceTitle "playchess.com"]
[Source "ChessBase"]
[SourceQuality "1"]
[TimeControl "900+10"]

{[%evp 12,135,9,15,6,0,6,17,6,11,23,10,16,0,8,12,20,20,20,20,22,27,22,25,25,31,31,20,25,17,20,16,44,26,38,34,23,29,76,22,111,114,116,110,118,110,117,118,118,111,113,107,129,129,129,129,117,116,166,166,166,166,166,166,166,164,166,144,135,100,102,89,197,208,221,218,199,194,739,724,678,655,552,425,907,665,1808,1738,1704,1618,29957,29958,29958,29959,29962,29960,29957,29954,11987,12670,29968,29970,29971,29972,29972,29973,29974,29975,29975,29976,29976,29977,29977,29978,29979,29979,29980,29981,29980,29982,29981,29982,29982,29983,29993,29994]} 1. e4 {[%emt 0:00:00]} e5 {[%emt 0:00:00]} 2. Nf3 {[%emt 0:00:02]} Nc6 {[%emt 0:00:02]} 3. Bc4 {[%emt 0:00:01]} Nf6 {[%emt 0:00:03]} 4. d3 {[%emt 0:00:01]} Bc5 {[%emt 0:00:01]} 5. O-O {[%emt 0:00:00]} O-O {[%emt 0:00:15]} 6. Nbd2 {[%emt 0:00:18]} d6 {[%emt 0:00:04]} 7. c3 {[%emt 0:00:00]} a5 {[%emt 0:00:07] C54: Giuoco Piano: 4 c3 Nf6, main lines with 5 d4 and 5 d3.} 8. h3 {[%emt 0:00:01]} h6 {[%emt 0:00:08] The main line 8...h6 scores better than 8...Be6.} 9. Re1 {[%emt 0:00:02]} Be6 {[%emt 0:00:06] The position is equal.} 10. Bb5 {[%emt 0:00:01]} Bb6 {[%emt 0:00:31] [#]} 11. Nc4 $146 {[%emt 0:00:03]} ({Predecessor:} 11. Ba4 Nh7 12. Nc4 Bxc4 13. dxc4 Qe7 14. Bc2 Nd8 15. Nh2 Nf6 16. Nf1 {½-½ (63) Paramzina,A (2260)-Girya,O (2402) Khanty-Mansiysk 2021}) 11... Bc5 {[%emt 0:00:03]} 12. Ba4 {[%emt 0:00:02]} Ne7 {[%emt 0:00:40]} 13. Ncd2 {[%emt 0:00:10]} Ng6 {[%emt 0:00:13]} 14. d4 {[%emt 0:01:44]} Ba7 {[%emt 0:00:01]} 15. Bc2 {[%emt 0:00:07]} Re8 {[%emt 0:02:00]} 16. Nf1 {[%emt 0:00:11]} exd4 {[%emt 0:00:22]} 17. cxd4 {[%emt 0:00:31]} d5 {[%emt 0:00:04]} 18. e5 {[%emt 0:00:05]} Ne4 {[%emt 0:00:00]} 19. Ng3 {[%emt 0:00:14]} Nxg3 {[%emt 0:00:35]} 20. fxg3 {[%emt 0:00:02]} c5 {[%emt 0:00:38]} 21. Be3 {[%emt 0:00:12]} Rc8 {[%emt 0:00:14]} 22. Kh2 {[%emt 0:00:49]} cxd4 {[%emt 0:03:28]} 23. Bxd4 {[%emt 0:00:03]} Bxd4 {[%emt 0:00:31]} 24. Nxd4 {[%emt 0:00:00]} Qb6 {[%emt 0:00:08]} (24... Nf8 $11) 25. b3 {[%emt 0:01:16]} ({White should play} 25. Bxg6 $16 fxg6 26. Qd3) 25... Bd7 {[%emt 0:00:56]} (25... Nf8 $11 {keeps the balance.}) 26. e6 $1 $16 {[%emt 0:01:04]} Bxe6 {[%emt 0:00:03]} 27. Bxg6 {[%emt 0:00:02]} fxg6 {[%emt 0:00:02]} 28. Nxe6 {[%emt 0:00:01][%mdl 64] Discovered Attack, Remove Defender} Rxe6 {[%emt 0:00:01]} 29. Qxd5 {[%emt 0:00:00]} Rce8 {[%emt 0:00:12]} 30. Rxe6 {[%emt 0:01:09]} Qxe6 {[%emt 0:00:06]} 31. Qxa5 {[%emt 0:00:04]} Qe5 {[%emt 0:03:32]} 32. Qxe5 {[%emt 0:00:04]} Rxe5 {[%emt 0:00:00][%mdl 4096] Endgame KR-KR} 33. Rf1 {[%emt 0:01:20]} b5 {[%emt 0:01:55]} 34. a3 {[%emt 0:08:23]} Re3 {[%emt 0:00:50]} (34... Re6 $16) 35. Rf3 $18 {[%emt 0:00:03]} Re2 {[%emt 0:00:10]} 36. g4 {[%emt 0:00:15]} Ra2 {[%emt 0:00:03]} 37. b4 {[%emt 0:00:01]} g5 {[%emt 0:00:15]} 38. Kg3 {[%emt 0:00:01]} Rc2 {[%emt 0:02:25]} 39. Re3 {[%emt 0:00:35]} Kf7 {[%emt 0:00:01]} 40. Kf3 {[%emt 0:00:02]} Ra2 {[%emt 0:00:43]} 41. g3 {[%emt 0:00:15]} Kf6 {[%emt 0:00:04]} (41... Rh2 $16) 42. Ke4 $1 {[%emt 0:00:27] Black must now prevent Kd4.} Ke6 {[%emt 0:00:03] [#]} 43. h4 $1 {[%emt 0:00:25]} gxh4 {[%emt 0:00:10]} 44. gxh4 {[%emt 0:00:01]} g5 $2 {[%emt 0:00:30]} (44... g6 45. g5 hxg5) 45. hxg5 {[%emt 0:00:03]} hxg5 {[%emt 0:00:01]} 46. Rh3 {[%emt 0:00:07] Hoping for Rh6+.} Rf2 {[%emt 0:00:20]} 47. Kd4 {[%emt 0:00:26]} Rc2 {[%emt 0:00:11]} (47... Rg2 $142 48. Kc5 Rxg4 49. Kxb5 Rd4 50. Re3+ Kd7) 48. Rh6+ {[%emt 0:00:29]} Kd7 {[%emt 0:00:05]} 49. Ke5 {[%emt 0:00:12]} Rc3 {[%emt 0:00:11]} 50. Kf5 {[%emt 0:00:39]} Rxa3 {[%emt 0:00:01] [#]} 51. Rb6 $1 {[%emt 0:00:01]} Ra4 {[%emt 0:00:22]} 52. Rxb5 {[%emt 0:00:02]} Kc6 {[%emt 0:00:01]} 53. Rc5+ {[%emt 0:00:31]} Kd6 {[%emt 0:00:08]} 54. Rc4 {[%emt 0:00:02]} Kd5 {[%emt 0:00:07]} 55. Rc1 {[%emt 0:00:08] Intending b5 and mate.} Rxb4 {[%emt 0:00:09]} 56. Rd1+ {[%emt 0:00:00] White mates.} Kc6 {[%emt 0:00:26]} 57. Kxg5 {[%emt 0:00:03]} Rb2 {[%emt 0:00:08]} 58. Kg6 {[%emt 0:00:05]} Rg2 {[%emt 0:00:01]} 59. g5 {[%emt 0:00:01][%cal Bg4g5,Bg5g6,Bg6g7][%mdl 32]} Rg3 {[%emt 0:00:01]} 60. Kf6 {[%emt 0:00:01]} Rf3+ {[%emt 0:00:01]} 61. Kg7 {[%emt 0:00:01]} Rg3 {[%emt 0:00:00]} 62. g6 {[%emt 0:00:00]} Rg2 {[%emt 0:00:01]} 63. Kf7 {[%emt 0:00:01]} Rf2+ {[%emt 0:00:00]} 64. Kg8 {[%emt 0:00:01]} Rg2 {[%emt 0:00:00]} 65. g7 {[%emt 0:00:01]} Rg3 {[%emt 0:00:02]} 66. Rf1 {[%emt 0:00:05]} Kd6 {[%emt 0:00:17]} 67. Kf7 {[%emt 0:00:02]} Rg1 {[%emt 0:00:03]} 68. Rxg1 {[%emt 0:00:03] Weighted Error Value: White=0.05 (flawless) /Black=0.40} 1-0

[Event "MCCT Chessable Masters 2022"]
[Site "Online"]
[Date "2022.05.16"]
[Round "12.3"]
[White "Tari, Aryan"]
[Black "Shankland, Sam"]
[Result "1-0"]
[ECO "B22"]
[WhiteElo "2654"]
[BlackElo "2718"]
[Annotator "TA"]
[PlyCount "55"]
[EventDate "2022.05.19"]
[EventType "tourn"]
[EventCountry "NET"]
[SourceTitle "playchess.com"]
[Source "ChessBase"]
[SourceQuality "1"]
[TimeControl "900+10"]

{[%evp 13,55,0,0,0,0,0,29,27,25,33,22,12,19,16,37,41,32,29,29,18,31,25,16,11,33,17,18,14,200,200,594,595,594,586,594,584,570,495,489,485,463,464,29986,29987]} 1. e4 {[%emt 0:00:00]} c5 {[%emt 0:00:00]} 2. Nf3 {[%emt 0:00:02]} e6 {[%emt 0:00:03]} 3. c3 {[%emt 0:01:19]} Nf6 {[%emt 0:00:04]} 4. e5 {[%emt 0:00:01]} Nd5 {[%emt 0:00:01]} 5. d4 {[%emt 0:00:00]} cxd4 {[%emt 0:00:02]} 6. cxd4 {[%emt 0:00:00]} d6 {[%emt 0:00:03]} 7. Bc4 {[%emt 0:00:01]} Be7 {[%emt 0:00:10]} 8. O-O {[%emt 0:00:04] B22: Sicilian: 2 c3.} O-O {[%emt 0:00:01]} 9. Qe2 {[%emt 0:00:01]} Bd7 {[%emt 0:00:02]} 10. Nc3 {[%emt 0:00:50] White has an edge.} Nxc3 {[%emt 0:00:03]} 11. bxc3 {[%emt 0:00:01]} Bc6 {[%emt 0:00:01]} 12. exd6 {[%emt 0:00:05]} Bxd6 {[%emt 0:00:02]} 13. Ne5 {[%emt 0:00:02]} Bxe5 {[%emt 0:00:02]} 14. Qxe5 {[%emt 0:01:17]} Nd7 {[%emt 0:00:03][%cal Bb8d7,Bd7f6,Bf6e4][%mdl 32]} 15. Qg3 {[%emt 0:02:07]} Nf6 {[%emt 0:00:02] [#]} 16. Re1 $146 {[%emt 0:00:58]} ({Predecessor:} 16. Bh6 Ne8 17. Rfe1 Rc8 18. Bg5 Qc7 19. Qh4 Nd6 20. Bd3 f5 21. Rxe6 Be4 22. Bf1 Qxc3 {1-0 (57) Mikac,M (2396)-Polajzer,D (2300) Slovenia 2013}) 16... Ne4 {[%emt 0:02:45] Prevents Bg5.} 17. Qd3 {[%emt 0:00:31]} Qa5 {[%emt 0:02:07]} (17... Qh4 $2 18. g3 Qh5 19. Rxe4 $18) 18. Bb2 {[%emt 0:01:01]} ({But not} 18. Rxe4 $2 Bxe4 19. Qxe4 Qxc3 $19) 18... Nd6 {[%emt 0:01:01]} 19. Re5 {[%emt 0:00:38] Against Qg5} Bd5 {[%emt 0:01:58][%cal Od5c4]} 20. Bb3 {[%emt 0:00:41] Strongly threatening c4.} ({Reject} 20. Rh5 g6 21. Bxd5 exd5 $17) 20... Rac8 {[%emt 0:00:43] [#] Against c4. A mistake that costs the game.} (20... g6 $11) 21. c4 $1 $18 {[%emt 0:00:59][%cal Bc3c4,Bc4d5,Bd5e6,Be6e7][%mdl 32]} f6 $2 {[%emt 0:01:07] [#]} ({Weaker is} 21... Nxc4 22. Bxc4 Bxc4 23. Qxc4 Qxe5 24. Qxc8 Qxh2+ 25. Kxh2) (21... Rxc4 {is a better chance.} 22. Bxc4 Bxc4) 22. cxd5 $1 {[%emt 0:01:55]} fxe5 {[%emt 0:00:04]} 23. dxe6 {[%emt 0:00:04] And now e7+ would win.} Kh8 {[%emt 0:00:16]} 24. e7 {[%emt 0:00:12]} Rf5 {[%emt 0:01:08]} 25. dxe5 {[%emt 0:00:56]} Rxe5 {[%emt 0:00:02]} 26. Bxe5 {[%emt 0:00:02]} Qxe5 {[%emt 0:00:02]} 27. Rd1 {[%emt 0:00:06]} Rc6 {[%emt 0:01:21]} (27... Qxe7 $18 28. Qxd6 Qxd6 29. Rxd6 Rc1+ 30. Bd1 Kg8) 28. Qe3 {[%emt 0:00:14] Weighted Error Value: White=0.05 (flawless) /Black=0.74} 1-0

[Event "MCCT Chessable Masters 2022"]
[Site "Online"]
[Date "2022.05.16"]
[Round "12.4"]
[White "Grandelius, Nils"]
[Black "Mishra, Abhimanyu"]
[Result "1/2-1/2"]
[ECO "D02"]
[WhiteElo "2635"]
[BlackElo "2535"]
[Annotator "TA"]
[PlyCount "81"]
[EventDate "2022.05.19"]
[EventType "tourn"]
[EventCountry "NET"]
[SourceTitle "playchess.com"]
[Source "ChessBase"]
[SourceQuality "1"]
[TimeControl "900+10"]

{[%evp 9,81,0,21,16,18,11,0,0,-2,-7,-7,-16,-23,-15,0,-37,-37,-30,-18,-18,-3,-20,0,0,0,-12,-11,-8,-8,-12,0,0,0,0,0,0,0,0,0,0,0,0,0,0,0,0,0,0,0,0,0,0,0,0,0,0,0,0,2,2,2,2,8,8,8,2,2,2,2,0,3,0,12,0]} 1. Nf3 {[%emt 0:00:00]} d5 {[%emt 0:00:00]} 2. g3 {[%emt 0:00:02]} g6 {[%emt 0:00:02]} 3. Bg2 {[%emt 0:00:09]} Bg7 {[%emt 0:00:02]} 4. d4 {[%emt 0:00:01]} c6 {[%emt 0:00:01]} 5. a4 {[%emt 0:00:02]} a5 {[%emt 0:00:14]} 6. O-O {[%emt 0:00:10] D02: 1 d4 d5 2 Nf3 sidelines, including 2...Nf6 3 g3 and 2...Nf6 3 Bf4.} Nf6 {[%emt 0:00:04][%cal Bg8f6,Bf6d5,Bd5b4][%mdl 32]} 7. c4 {[%emt 0:00:03]} O-O {[%emt 0:00:05]} 8. cxd5 {[%emt 0:00:07]} Nxd5 {[%emt 0:00:13]} 9. Nc3 {[%emt 0:00:44]} Nb4 {[%emt 0:01:31]} 10. Bf4 {[%emt 0:00:58]} Bg4 {[%emt 0:00:49]} 11. Ne5 {[%emt 0:00:35]} Be6 {[%emt 0:00:17] [#]} 12. h3 $146 {[%emt 0:00:22]} ({Predecessor:} 12. Qd2 Nd7 13. Nf3 Bg4 14. Bh6 Bxf3 15. Bxf3 e5 16. d5 Bxh6 17. Qxh6 cxd5 18. Nxd5 Nxd5 19. Bxd5 {1-0 (50) Tukhaev,A (2541)-Laxman,R (2426) Hyderabad 2019}) 12... Nd7 {[%emt 0:00:12]} 13. Nf3 {[%emt 0:00:03]} Nf6 {[%emt 0:01:11]} 14. Qd2 $1 {[%emt 0:01:00] The position is equal.} Qb6 {[%emt 0:00:59]} 15. Bh6 {[%emt 0:01:22]} Bd5 {[%emt 0:01:01]} 16. Bxg7 {[%emt 0:00:44]} Kxg7 {[%emt 0:00:00]} 17. Nxd5 {[%emt 0:03:07]} cxd5 {[%emt 0:00:43]} 18. Ne5 {[%emt 0:00:16]} Rac8 {[%emt 0:01:06]} 19. Rfc1 {[%emt 0:00:11] Inhibits Rc2.} (19. Rac1 {is interesting.} Rfd8 20. e3 Ne4 21. Bxe4 dxe4 22. Rxc8 Rxc8 23. Rc1) 19... Nc6 {[%emt 0:01:12]} 20. e3 {[%emt 0:00:04]} e6 {[%emt 0:00:21]} 21. Nd3 {[%emt 0:00:15]} Nd7 {[%emt 0:00:47]} 22. Bf1 {[%emt 0:01:09]} Rc7 {[%emt 0:00:52]} 23. Nc5 {[%emt 0:01:26]} Rfc8 {[%emt 0:00:53]} 24. Nxd7 {[%emt 0:01:27]} Rxd7 {[%emt 0:00:00]} 25. Rc5 {[%emt 0:00:08]} Rdc7 {[%emt 0:00:35]} 26. Rac1 {[%emt 0:00:04]} Nb4 {[%emt 0:01:12][%cal Rc7c5]} 27. Rxc7 {[%emt 0:00:37]} Rxc7 {[%emt 0:00:06]} 28. Bb5 {[%emt 0:00:11]} Qd6 {[%emt 0:01:12]} 29. Kg2 {[%emt 0:01:14]} b6 {[%emt 0:00:39]} 30. h4 {[%emt 0:00:31]} h5 {[%emt 0:00:10]} 31. Rc3 {[%emt 0:00:03]} Na2 {[%emt 0:00:11]} 32. Rxc7 {[%emt 0:00:21]} Qxc7 $11 {[%emt 0:00:00][%mdl 4096] Endgame KQB-KQN} 33. Kf1 {[%emt 0:00:02]} Qc1+ {[%emt 0:01:40]} 34. Qxc1 {[%emt 0:00:05]} Nxc1 {[%emt 0:00:00] KB-KN} 35. Ke1 {[%emt 0:00:27]} Kf6 {[%emt 0:00:39]} 36. Kd2 {[%emt 0:00:03]} Na2 {[%emt 0:00:01]} 37. Kd3 {[%emt 0:01:13]} Nb4+ {[%emt 0:00:02]} 38. Kc3 {[%emt 0:00:00]} Na2+ {[%emt 0:00:08]} 39. Kd3 {[%emt 0:00:03]} Nb4+ {[%emt 0:00:01]} 40. Kc3 {[%emt 0:00:45]} Na2+ {[%emt 0:00:04]} 41. Kd3 {[%emt 0:00:01] Weighted Error Value: White=0.02 (flawless) /Black=0.02 (flawless)} 1/2-1/2